[Event "Israeli U18-Team-ch 2024"]
[Site "Rishon LeZion"]
[Date "2024.08.01"]
[Round "5.3"]
[White "Dezent, Eyal"]
[Black "Pelech, Roee"]
[Result "0-1"]
[ECO "D02"]
[WhiteElo "2076"]
[BlackElo "2267"]
[Annotator "RC"]
[PlyCount "86"]
[EventDate "2024.08.01"]
[EventType "team-tourn"]
[EventCountry "ISR"]
[SourceTitle "playchess.com"]
[Source "ChessBase"]
[SourceQuality "1"]
[TimeControl "3000+10"]

1. d4 {[%emt 0:00:03]} d5 {[%emt 0:00:50]} 2. Bf4 {[%emt 0:02:38]} Nf6 {[%emt 0:00:11]} 3. e3 {[%emt 0:00:03]} c5 {[%emt 0:00:09]} 4. c3 {[%emt 0:00:57]} Nc6 {[%emt 0:00:06]} 5. Nd2 {[%emt 0:00:08]} e6 {[%emt 0:00:10]} 6. Ngf3 {[%emt 0:00:05]} cxd4 {[%emt 0:00:56]} 7. exd4 {[%emt 0:00:06]} Nh5 {[%emt 0:00:28]} 8. Be5 {[%emt 0:04:53]} f6 {[%emt 0:04:18]} 9. Bg3 {[%emt 0:01:00]} g6 {[%emt 0:00:39]} 10. Bd3 {[%emt 0:10:41]} Bh6 {[%emt 0:03:18]} 11. O-O {[%emt 0:01:27]} Nxg3 {[%emt 0:40:55]} 12. hxg3 {[%emt 0:00:06]} O-O {[%emt 0:00:00]} 13. Re1 {[%emt 0:01:10]} Qb6 {[%emt 0:00:00]} 14. Nb3 {[%emt 0:02:19]} e5 {[%emt 0:00:00]} 15. Bc2 {[%emt 0:07:55]} e4 {[%emt 0:00:00]} 16. Nh2 {[%emt 0:00:06]} f5 {[%emt 0:00:00]} 17. Nf1 {[%emt 0:00:22]} Ne7 {[%emt 0:00:00]} 18. Ne3 {[%emt 0:01:05]} Qc7 {[%emt 0:00:00]} 19. Qe2 {[%emt 0:05:02]} b6 {[%emt 0:00:00]} 20. Nd2 {[%emt 0:00:45]} Be6 {[%emt 0:00:00]} 21. Bb3 {[%emt 0:00:16]} Rad8 {[%emt 0:01:40]} 22. Rac1 {[%emt 0:01:16]} Nc6 {[%emt 0:00:00]} 23. Ndf1 {[%emt 0:04:24]} Qf7 {[%emt 0:00:00]} 24. f4 {[%emt 0:02:03]} g5 {[%emt 0:00:00]} 25. Qf2 {[%emt 0:01:04]} b5 {[%emt 0:00:00]} 26. Nd2 {[%emt 0:01:28]} Ne7 {[%emt 0:00:00]} 27. Bd1 {[%emt 0:00:17]} Ng6 {[%emt 0:00:00]} 28. Bh5 {[%emt 0:00:01]} Qc7 {[%emt 0:00:00]} 29. Bxg6 {[%emt 0:00:15]} hxg6 {[%emt 0:00:00]} 30. Rf1 {[%emt 0:00:16]} Rf7 {[%emt 0:00:00]} 31. Nb3 {[%emt 0:00:38]} Rh7 {[%emt 0:00:00]} 32. Nc5 {[%emt 0:00:00]} Bc8 {[%emt 0:00:00]} 33. b3 {[%emt 0:00:56]} Bf8 {[%emt 0:00:00]} 34. c4 {[%emt 0:00:12]} dxc4 {[%emt 0:00:00]} 35. bxc4 {[%emt 0:00:04]} Rxd4 {[%emt 0:00:00]} 36. Nb3 {[%emt 0:00:20]} Rd3 {[%emt 0:00:00]} 37. cxb5 {[%emt 0:00:40]} Qd8 {[%emt 0:00:00]} 38. Nc4 {[%emt 0:00:28]} Be6 {[%emt 0:00:00]} 39. Ne5 {[%emt 0:00:02]} Rd5 {[%emt 0:00:00]} 40. Nxg6 {[%emt 0:00:08]} Ba3 {[%emt 0:00:08]} 41. Rc6 {[%emt 0:00:07]} Bd7 {[%emt 0:00:30]} 42. Rc2 {[%emt 0:00:24]} Bxb5 {[%emt 0:00:02]} 43. Rfc1 {[%emt 0:00:01]} Rd1+ {[%emt 0:00:07]} 0-1

[Event "Israeli U18-Team-ch 2024"]
[Site "Rishon LeZion"]
[Date "2024.08.01"]
[Round "5.4"]
[White "Zakin, Ilay"]
[Black "Magen, Ofek"]
[Result "0-1"]
[ECO "B43"]
[WhiteElo "2306"]
[BlackElo "1911"]
[Annotator "RC"]
[PlyCount "158"]
[EventDate "2024.08.01"]
[EventType "team-tourn"]
[EventCountry "ISR"]
[SourceTitle "playchess.com"]
[Source "ChessBase"]
[SourceQuality "1"]
[TimeControl "3000+10"]

1. e4 {[%emt 0:00:14]} c5 {[%emt 0:00:24]} 2. Nf3 {[%emt 0:00:11]} e6 {[%emt 0:00:09]} 3. d4 {[%emt 0:00:07]} cxd4 {[%emt 0:00:03]} 4. Nxd4 {[%emt 0:00:04]} a6 {[%emt 0:00:10]} 5. Nc3 {[%emt 0:00:04]} b5 {[%emt 0:00:07]} 6. g3 {[%emt 0:00:08]} Bb7 {[%emt 0:00:17]} 7. Bg2 {[%emt 0:00:03]} Nf6 {[%emt 0:00:12]} 8. O-O {[%emt 0:00:05]} b4 {[%emt 0:00:47]} 9. Na4 {[%emt 0:00:06]} Bxe4 {[%emt 0:00:20]} 10. Bxe4 {[%emt 0:00:04]} Nxe4 {[%emt 0:00:04]} 11. c4 {[%emt 0:00:04]} bxc3 {[%emt 0:01:01]} 12. Re1 {[%emt 0:00:03]} Nf6 {[%emt 0:04:25]} 13. bxc3 {[%emt 0:13:29]} Nc6 {[%emt 0:11:53]} 14. Nf5 {[%emt 0:03:25]} Qa5 {[%emt 0:08:52]} 15. g4 {[%emt 0:03:21]} h5 {[%emt 0:02:53]} 16. Bf4 {[%emt 0:04:47]} Nxg4 {[%emt 0:02:42]} 17. Ng3 {[%emt 0:03:35]} Be7 {[%emt 0:02:24]} 18. Rb1 {[%emt 0:01:40]} O-O {[%emt 0:03:26]} 19. Rb7 {[%emt 0:02:18]} Bc5 {[%emt 0:04:16]} 20. Ne4 {[%emt 0:01:09]} Ba7 {[%emt 0:01:17]} 21. h3 {[%emt 0:01:17]} Qf5 {[%emt 0:00:28]} 22. Bg3 {[%emt 0:01:13]} Nge5 {[%emt 0:00:23]} 23. Kg2 {[%emt 0:01:00]} d5 {[%emt 0:01:59]} 24. Nd6 {[%emt 0:01:44]} Qg6 {[%emt 0:00:11]} 25. Kh2 {[%emt 0:00:14]} Bb8 {[%emt 0:01:23]} 26. Rxe5 {[%emt 0:03:11]} Bxd6 {[%emt 0:00:33]} 27. Rxh5 {[%emt 0:00:25]} Bxg3+ {[%emt 0:00:04]} 28. fxg3 {[%emt 0:00:01]} Rab8 {[%emt 0:00:25]} 29. Rb3 {[%emt 0:00:25]} Na5 {[%emt 0:00:16]} 30. Rb4 {[%emt 0:00:16]} Nc4 {[%emt 0:00:36]} 31. Rh4 {[%emt 0:00:54]} Rxb4 {[%emt 0:00:41]} 32. cxb4 {[%emt 0:00:01]} Rc8 {[%emt 0:00:42]} 33. Qe2 {[%emt 0:03:57]} Ne3 {[%emt 0:01:02]} 34. Nc5 {[%emt 0:00:16]} Nf5 {[%emt 0:00:34]} 35. Rg4 {[%emt 0:00:15]} Qf6 {[%emt 0:00:16]} 36. Rf4 {[%emt 0:01:33]} Qg5 {[%emt 0:00:28]} 37. Qf2 {[%emt 0:01:31]} a5 {[%emt 0:00:01]} 38. bxa5 {[%emt 0:01:04]} Rxc5 {[%emt 0:00:28]} 39. Rxf5 {[%emt 0:00:02]} Qc1 {[%emt 0:00:01]} 40. Re5 {[%emt 0:00:25]} Rc2 {[%emt 0:00:21]} 41. Re2 {[%emt 0:00:01]} Rc4 {[%emt 0:00:01]} 42. a6 {[%emt 0:00:20]} Qa3 {[%emt 0:00:09]} 43. Qb6 {[%emt 0:00:34]} Ra4 {[%emt 0:00:01]} 44. Qd8+ {[%emt 0:00:01]} Qf8 {[%emt 0:00:01]} 45. Qb6 {[%emt 0:00:50]} Qa8 {[%emt 0:00:01]} 46. Qc7 {[%emt 0:00:32]} Rxa6 {[%emt 0:00:13]} 47. Rf2 {[%emt 0:00:02]} Ra7 {[%emt 0:00:07]} 48. Qf4 {[%emt 0:00:05]} d4 {[%emt 0:00:29]} 49. Qxd4 {[%emt 0:00:20]} Rxa2 {[%emt 0:00:10]} 50. Rxa2 {[%emt 0:00:14]} Qxa2+ {[%emt 0:00:01]} 51. Kg1 {[%emt 0:00:01]} Qd5 {[%emt 0:00:17]} 52. Qb4 {[%emt 0:00:25]} e5 {[%emt 0:00:10]} 53. Kf2 {[%emt 0:00:08]} g6 {[%emt 0:00:02]} 54. Ke3 {[%emt 0:00:09]} Qe6 {[%emt 0:00:14]} 55. g4 {[%emt 0:00:17]} Qf6 {[%emt 0:00:12]} 56. Qe4 {[%emt 0:00:12]} Qf1 {[%emt 0:00:09]} 57. Qxe5 {[%emt 0:00:26]} Qxh3+ {[%emt 0:00:01]} 58. Kf4 {[%emt 0:00:01]} Qh2+ {[%emt 0:00:06]} 59. Ke4 {[%emt 0:00:01]} Qxe5+ {[%emt 0:00:32]} 60. Kxe5 {[%emt 0:00:01]} Kg7 {[%emt 0:00:09]} 61. g5 {[%emt 0:00:31]} Kf8 {[%emt 0:00:07]} 62. Kd5 {[%emt 0:00:25]} Ke8 {[%emt 0:00:03]} 63. Kc6 {[%emt 0:00:08]} Ke7 {[%emt 0:00:07]} 64. Kd5 {[%emt 0:00:01]} f6 {[%emt 0:00:14]} 65. Ke4 {[%emt 0:00:21]} fxg5 {[%emt 0:00:27]} 66. Ke5 {[%emt 0:00:01]} Kf7 {[%emt 0:00:04]} 67. Ke4 {[%emt 0:00:02]} Ke6 {[%emt 0:00:03]} 68. Kf3 {[%emt 0:00:01]} Kf5 {[%emt 0:00:02]} 69. Kg3 {[%emt 0:00:01]} g4 {[%emt 0:00:01]} 70. Kg2 {[%emt 0:00:00]} Kf4 {[%emt 0:00:00]} 71. Kf2 {[%emt 0:00:00]} g3+ {[%emt 0:00:03]} 72. Kg2 {[%emt 0:00:01]} Kg4 {[%emt 0:00:01]} 73. Kg1 {[%emt 0:00:00]} Kf3 {[%emt 0:00:02]} 74. Kf1 {[%emt 0:00:02]} g5 {[%emt 0:00:06]} 75. Kg1 {[%emt 0:00:01]} g2 {[%emt 0:00:01]} 76. Kh2 {[%emt 0:00:01]} Kf2 {[%emt 0:00:00]} 77. Kh3 {[%emt 0:00:01]} g1=R {[%emt 0:02:00]} 78. Kh2 {[%emt 0:00:01]} Rg4 {[%emt 0:00:00]} 79. Kh3 {[%emt 0:02:21]} Rh4# 0-1

[Event "Israeli U18-Team-ch 2024"]
[Site "Rishon LeZion"]
[Date "2024.08.01"]
[Round "5.5"]
[White "Levin, Guy"]
[Black "Brezis, Ari"]
[Result "1/2-1/2"]
[ECO "D53"]
[WhiteElo "2470"]
[BlackElo "2028"]
[Annotator "TA"]
[PlyCount "83"]
[EventDate "2024.08.01"]
[EventType "team-tourn"]
[EventCountry "ISR"]
[SourceTitle "playchess.com"]
[Source "ChessBase"]
[SourceQuality "1"]
[TimeControl "3000+10"]

{[%evp 9,83,11,28,22,27,22,35,15,16,13,29,0,7,0,0,4,20,0,0,0,0,0,25,0,0,0,0,0,11,0,0,0,0,0,21,10,8,0,15,23,54,-34,-9,-8,-27,-73,0,-47,-31,-39,0,0,0,0,0,0,0,0,45,8,8,0,0,0,0,0,0,0,8,0,0,-18,-28,-294,-293,-258]} 1. c4 {[%emt 0:00:25]} e6 {[%emt 0:00:42]} 2. Nc3 {[%emt 0:01:35]} d5 {[%emt 0:00:11]} 3. d4 {[%emt 0:00:02]} Nf6 {[%emt 0:00:17]} 4. Bg5 {[%emt 0:00:06]} Be7 {[%emt 0:00:49]} 5. e3 {[%emt 0:00:08]} a6 {[%emt 0:00:18]} 6. cxd5 {[%emt 0:00:19]} exd5 {[%emt 0:00:37]} 7. Bd3 {[%emt 0:00:08]} c6 {[%emt 0:00:32]} 8. Nge2 {[%emt 0:00:46] White is slightly better.} Nbd7 {[%emt 0:00:32]} 9. O-O {[%emt 0:00:07]} O-O {[%emt 0:01:10]} 10. f3 {[%emt 0:01:08]} Re8 {[%emt 0:04:27]} 11. Qc2 {[%emt 0:04:36]} h6 {[%emt 0:04:26]} 12. Bh4 {[%emt 0:00:18]} c5 {[%emt 0:00:17]} 13. Rae1 {[%emt 0:03:08]} b5 {[%emt 0:02:48]} 14. dxc5 {[%emt 0:02:30]} Nxc5 {[%emt 0:00:49]} 15. Nd4 {[%emt 0:00:50]} Be6 {[%emt 0:01:28]} 16. Nxe6 {[%emt 0:03:26]} Nxe6 {[%emt 0:01:29]} 17. Rd1 {[%emt 0:01:36]} Rc8 {[%emt 0:01:10] [#] And now ...b4 would win.} 18. Qb1 {[%emt 0:00:31]} Qb6 {[%emt 0:01:34]} 19. Rfe1 {[%emt 0:06:19]} Ng5 {[%emt 0:03:46]} 20. Bf5 {[%emt 0:05:53]} Rcd8 {[%emt 0:00:54]} 21. Kh1 {[%emt 0:03:05]} b4 {[%emt 0:09:12]} 22. Na4 {[%emt 0:00:49]} Qb5 {[%emt 0:00:46]} 23. b3 {[%emt 0:00:18]} Bd6 {[%emt 0:01:31]} 24. Qd3 {[%emt 0:03:34]} Rb8 {[%emt 0:03:04]} 25. e4 {[%emt 0:02:15]} (25. Rc1 $14) 25... Qxd3 {[%emt 0:01:38]} (25... dxe4 {simplifies} 26. Qxb5 Rxb5 27. Bxg5 Rxf5 28. Bxf6 Rxf6 29. Rxe4 Rxe4 30. fxe4 Bc7) 26. Rxd3 {[%emt 0:00:06]} g6 {[%emt 0:00:35]} 27. Bh3 {[%emt 0:00:58]} (27. Bd7 $11 {should be considered.} Nxd7 28. Rxd5) 27... Rb5 {[%emt 0:02:28]} (27... dxe4 $2 {is the wrong capture.} 28. Rxd6 Nxh3 29. Rxf6 $18 (29. gxh3 Nh5 $18)) (27... Nxh3 $17 28. gxh3 Be7 (28... dxe4 $2 {perishes.} 29. Rxd6 Nh5 30. fxe4 $18) (28... g5 29. Bf2 $17)) 28. Bxg5 {[%emt 0:05:16]} (28. Red1 $1 $11) 28... hxg5 $15 {[%emt 0:00:04]} 29. Red1 {[%emt 0:00:02]} g4 {[%emt 0:02:18]} 30. Bxg4 {[%emt 0:00:12]} Nxg4 {[%emt 0:00:04]} 31. fxg4 {[%emt 0:00:02]} Rxe4 {[%emt 0:00:02]} 32. g3 {[%emt 0:00:18]} Rxg4 {[%emt 0:01:39]} 33. Rxd5 {[%emt 0:00:08]} Be5 {[%emt 0:00:07]} 34. Nc5 {[%emt 0:01:12]} Bc3 {[%emt 0:01:21]} 35. Rd8+ {[%emt 0:01:59]} Kg7 {[%emt 0:00:22]} 36. Rc8 {[%emt 0:00:06][%cal Od1d7]} Ra5 {[%emt 0:00:43]} 37. Rd7 {[%emt 0:00:34]} Rxa2 {[%emt 0:01:01]} 38. Rcc7 {[%emt 0:00:54]} Kg8 {[%emt 0:01:04]} 39. Rc8+ {[%emt 0:00:33]} Kg7 {[%emt 0:00:02]} 40. Ne6+ {[%emt 0:00:06]} Kh6 {[%emt 0:00:14]} 41. Nf4 $2 {[%emt 0:00:20][%mdl 8192] [#]} (41. Rxf7 $11 Re4 42. Rh7+ Kxh7 43. Ng5+ Kh6 44. Nxe4) 41... g5 $1 $19 {[%emt 0:00:10]} 42. Rc6+ {[%emt 0:00:10][%mdl 32768] Weighted Error Value: White=0.23 (precise) /Black=0.11 (very precise) .  Loses game:     	White=1     	---        Mistake:       	White=3     	Black=1      Inaccurate:     	White=2     	Black=3      OK:         	White=15    	Black=15     Best:        	White=1     	Black=1      Strong:       	---       	Black=1     . An unexpected result.} 1/2-1/2

[Event "Israeli U18-Team-ch 2024"]
[Site "Rishon LeZion"]
[Date "2024.08.01"]
[Round "5.6"]
[White "Laor, Jason Ethan"]
[Black "Kochavi, Dana"]
[Result "0-1"]
[ECO "C54"]
[WhiteElo "1841"]
[BlackElo "2135"]
[Annotator "RC"]
[PlyCount "70"]
[EventDate "2024.08.01"]
[EventType "team-tourn"]
[EventCountry "ISR"]
[SourceTitle "playchess.com"]
[Source "ChessBase"]
[SourceQuality "1"]
[TimeControl "3000+10"]

1. e4 {[%emt 0:00:02]} e5 {[%emt 0:00:04]} 2. Nf3 {[%emt 0:00:03]} Nc6 {[%emt 0:00:04]} 3. d4 {[%emt 0:00:52]} exd4 {[%emt 0:00:12]} 4. Bc4 {[%emt 0:00:06]} Bc5 {[%emt 0:03:37]} 5. c3 {[%emt 0:00:01]} Nge7 {[%emt 0:04:03]} 6. cxd4 {[%emt 0:03:20]} Bb4+ {[%emt 0:00:15]} 7. Nc3 {[%emt 0:00:53]} d5 {[%emt 0:00:45]} 8. exd5 {[%emt 0:00:04]} Nxd5 {[%emt 0:00:41]} 9. O-O {[%emt 0:00:20]} Be6 {[%emt 0:09:00]} 10. Qd3 {[%emt 0:10:18]} h6 {[%emt 0:04:11]} 11. Bb3 {[%emt 0:12:30]} O-O {[%emt 0:02:02]} 12. a3 {[%emt 0:01:39]} Be7 {[%emt 0:01:52]} 13. Bc2 {[%emt 0:02:09]} Nf6 {[%emt 0:07:30]} 14. Ne4 {[%emt 0:00:50]} Re8 {[%emt 0:02:49]} 15. b4 {[%emt 0:03:54]} a6 {[%emt 0:15:35]} 16. Bb2 {[%emt 0:02:47]} Nxe4 {[%emt 0:00:10]} 17. Qxe4 {[%emt 0:00:02]} Bf6 {[%emt 0:00:00]} 18. Qh7+ {[%emt 0:00:34]} Kf8 {[%emt 0:00:00]} 19. Rad1 {[%emt 0:00:25]} Qd5 {[%emt 0:00:00]} 20. Be4 {[%emt 0:02:14]} Qb3 {[%emt 0:00:00]} 21. d5 {[%emt 0:00:41]} Bxb2 {[%emt 0:00:00]} 22. dxe6 {[%emt 0:00:30]} Qxe6 {[%emt 0:00:00]} 23. Bd5 {[%emt 0:06:48]} Qf6 {[%emt 0:00:00]} 24. Rfe1 {[%emt 0:02:00]} g5 {[%emt 0:00:00]} 25. Bxc6 {[%emt 0:01:02]} bxc6 {[%emt 0:00:00]} 26. h3 {[%emt 0:00:14]} Bxa3 {[%emt 0:00:00]} 27. Rd7 {[%emt 0:00:09]} Rxe1+ {[%emt 0:00:00]} 28. Nxe1 {[%emt 0:00:01]} Re8 {[%emt 0:00:35]} 29. Nd3 {[%emt 0:00:32]} Re7 {[%emt 0:00:52]} 30. Rd8+ {[%emt 0:00:00]} Re8 {[%emt 0:00:01]} 31. Rd7 {[%emt 0:00:00]} c5 {[%emt 0:01:02]} 32. bxc5 {[%emt 0:00:00]} c6 {[%emt 0:00:10]} 33. Ra7 {[%emt 0:00:00]} Bxc5 {[%emt 0:00:00]} 34. Nxc5 {[%emt 0:00:10]} Re1+ {[%emt 0:00:00]} 35. Kh2 {[%emt 0:00:00]} Qf4+ {[%emt 0:00:00]} 0-1

[Event "Israeli U18-Team-ch 2024"]
[Site "Rishon LeZion"]
[Date "2024.08.01"]
[Round "5.7"]
[White "Duchan, Yoav"]
[Black "Beitner, Yehonatan"]
[Result "1-0"]
[ECO "B43"]
[WhiteElo "2008"]
[BlackElo "1929"]
[Annotator "RC"]
[PlyCount "67"]
[EventDate "2024.08.01"]
[EventType "team-tourn"]
[EventCountry "ISR"]
[SourceTitle "playchess.com"]
[Source "ChessBase"]
[SourceQuality "1"]
[TimeControl "3000+10"]

1. e4 {[%emt 0:06:06]} c5 {[%emt 0:00:09]} 2. Nf3 {[%emt 0:00:03]} e6 {[%emt 0:00:07]} 3. d4 {[%emt 0:00:04]} cxd4 {[%emt 0:00:06]} 4. Nxd4 {[%emt 0:00:04]} a6 {[%emt 0:00:14]} 5. Nc3 {[%emt 0:00:07]} b5 {[%emt 0:00:06]} 6. g3 {[%emt 0:00:46]} b4 {[%emt 0:00:07]} 7. Nce2 {[%emt 0:00:28]} Bb7 {[%emt 0:00:10]} 8. Bg2 {[%emt 0:01:22]} Nf6 {[%emt 0:00:06]} 9. Qd3 {[%emt 0:02:29]} d6 {[%emt 0:00:10]} 10. O-O {[%emt 0:00:15]} Nbd7 {[%emt 0:00:02]} 11. Bg5 {[%emt 0:04:23]} Be7 {[%emt 0:00:07]} 12. c3 {[%emt 0:02:52]} Ne5 {[%emt 0:05:44]} 13. Qc2 {[%emt 0:04:05]} bxc3 {[%emt 0:00:09]} 14. Nxc3 {[%emt 0:04:55]} Qb6 {[%emt 0:00:24]} 15. Qa4+ {[%emt 0:01:44]} Nfd7 {[%emt 0:01:22]} 16. Be3 {[%emt 0:11:09]} Ng4 {[%emt 0:05:42]} 17. Nxe6 {[%emt 0:01:57]} Nxe3 {[%emt 0:00:09]} 18. Nxg7+ {[%emt 0:00:20]} Kf8 {[%emt 0:02:25]} 19. fxe3 {[%emt 0:00:27]} Bc6 {[%emt 0:00:15]} 20. Qd4 {[%emt 0:00:34]} Qxd4 {[%emt 0:03:22]} 21. Ne6+ {[%emt 0:00:26]} Ke8 {[%emt 0:00:05]} 22. Nxd4 {[%emt 0:00:15]} Bb7 {[%emt 0:00:04]} 23. Nf5 {[%emt 0:01:00]} Ne5 {[%emt 0:00:17]} 24. Bh3 {[%emt 0:01:30]} Rg8 {[%emt 0:01:11]} 25. Rac1 {[%emt 0:01:04]} Rb8 {[%emt 0:03:22]} 26. Nd5 {[%emt 0:01:37]} Bxd5 {[%emt 0:00:06]} 27. exd5 {[%emt 0:00:03]} Bf8 {[%emt 0:01:53]} 28. Rc7 {[%emt 0:01:46]} Nd3 {[%emt 0:00:10]} 29. Nd4 {[%emt 0:00:45]} Ne5 {[%emt 0:01:08]} 30. Nc6 {[%emt 0:01:08]} Nxc6 {[%emt 0:00:02]} 31. dxc6 {[%emt 0:00:09]} Bh6 {[%emt 0:01:33]} 32. Rcxf7 {[%emt 0:00:54]} Rxb2 {[%emt 0:00:56]} 33. c7 {[%emt 0:00:15]} Bxe3+ {[%emt 0:00:03]} 34. Kh1 {[%emt 0:00:07]} 1-0

[Event "Israeli U18-Team-ch 2024"]
[Site "Rishon LeZion"]
[Date "2024.08.01"]
[Round "5.8"]
[White "David, Idan"]
[Black "Gurevich, Neria"]
[Result "1/2-1/2"]
[ECO "D02"]
[WhiteElo "1873"]
[BlackElo "1997"]
[Annotator "RC"]
[PlyCount "120"]
[EventDate "2024.08.01"]
[EventType "team-tourn"]
[EventCountry "ISR"]
[SourceTitle "playchess.com"]
[Source "ChessBase"]
[SourceQuality "1"]
[TimeControl "3000+10"]

1. d4 {[%emt 0:00:02]} Nf6 {[%emt 0:00:10]} 2. Bf4 {[%emt 0:00:05]} d5 {[%emt 0:00:14]} 3. e3 {[%emt 0:00:03]} g6 {[%emt 0:00:20]} 4. Nf3 {[%emt 0:00:15]} Bg7 {[%emt 0:00:11]} 5. h4 {[%emt 0:00:07]} h5 {[%emt 0:00:50]} 6. Bd3 {[%emt 0:01:02]} Bg4 {[%emt 0:01:12]} 7. Nbd2 {[%emt 0:00:09]} O-O {[%emt 0:00:11]} 8. c3 {[%emt 0:01:10]} c5 {[%emt 0:01:20]} 9. a4 {[%emt 0:00:33]} Nc6 {[%emt 0:00:39]} 10. Qc2 {[%emt 0:02:04]} Nd7 {[%emt 0:02:24]} 11. Nh2 {[%emt 0:02:57]} e5 {[%emt 0:02:27]} 12. dxe5 {[%emt 0:01:04]} Ndxe5 {[%emt 0:00:13]} 13. Nxg4 {[%emt 0:00:12]} Nxg4 {[%emt 0:00:10]} 14. Be2 {[%emt 0:04:58]} Nge5 {[%emt 0:02:52]} 15. Rd1 {[%emt 0:01:51]} Qe7 {[%emt 0:08:27]} 16. Bg5 {[%emt 0:04:17]} Qe6 {[%emt 0:00:48]} 17. O-O {[%emt 0:00:37]} Rfe8 {[%emt 0:02:29]} 18. Nf3 {[%emt 0:02:46]} f6 {[%emt 0:09:07]} 19. Bf4 {[%emt 0:00:17]} Rad8 {[%emt 0:04:39]} 20. Bg3 {[%emt 0:04:56]} Rd7 {[%emt 0:01:35]} 21. Rd2 {[%emt 0:01:49]} Red8 {[%emt 0:00:52]} 22. Rfd1 {[%emt 0:00:13]} Kh7 {[%emt 0:00:32]} 23. Nxe5 {[%emt 0:01:23]} fxe5 {[%emt 0:00:15]} 24. Bxh5 {[%emt 0:00:32]} e4 {[%emt 0:00:16]} 25. Be2 {[%emt 0:00:01]} d4 {[%emt 0:02:06]} 26. cxd4 {[%emt 0:01:13]} cxd4 {[%emt 0:10:11]} 27. Qc4 {[%emt 0:02:09]} Qxc4 {[%emt 0:00:00]} 28. Bxc4 {[%emt 0:00:01]} d3 {[%emt 0:00:00]} 29. f3 {[%emt 0:01:04]} Bh6 {[%emt 0:00:00]} 30. Kf2 {[%emt 0:00:00]} Rf8 {[%emt 0:00:00]} 31. Bf4 {[%emt 0:04:39]} exf3 {[%emt 0:00:00]} 32. gxf3 {[%emt 0:01:33]} Bxf4 {[%emt 0:00:00]} 33. exf4 {[%emt 0:00:02]} Rxf4 {[%emt 0:00:00]} 34. Bxd3 {[%emt 0:00:01]} Kh6 {[%emt 0:00:00]} 35. Be4 {[%emt 0:01:11]} Rxd2+ {[%emt 0:00:00]} 36. Rxd2 {[%emt 0:00:01]} Rxh4 {[%emt 0:00:00]} 37. Kg3 {[%emt 0:01:01]} Rh5 {[%emt 0:00:04]} 38. f4 {[%emt 0:01:20]} Rc5 {[%emt 0:01:11]} 39. Rd6 {[%emt 0:00:37]} Ne7 {[%emt 0:00:03]} 40. Rd7 {[%emt 0:01:01]} Nf5+ {[%emt 0:00:19]} 41. Bxf5 {[%emt 0:00:16]} gxf5 {[%emt 0:00:01]} 42. Rxb7 {[%emt 0:00:09]} Rc2 {[%emt 0:00:11]} 43. a5 {[%emt 0:00:56]} a6 {[%emt 0:00:21]} 44. Rb6+ {[%emt 0:02:05]} Kh5 {[%emt 0:00:02]} 45. Rf6 {[%emt 0:00:01]} Rxb2 {[%emt 0:00:06]} 46. Rxf5+ {[%emt 0:00:01]} Kg6 {[%emt 0:00:08]} 47. Rc5 {[%emt 0:00:03]} Kf6 {[%emt 0:00:14]} 48. Kg4 {[%emt 0:00:47]} Rg2+ {[%emt 0:00:26]} 49. Kf3 {[%emt 0:04:46]} Rb2 {[%emt 0:00:03]} 50. Ke3 {[%emt 0:00:00]} Rb4 {[%emt 0:00:19]} 51. Rc6+ {[%emt 0:00:00]} Kf5 {[%emt 0:00:01]} 52. Rxa6 {[%emt 0:00:00]} Re4+ {[%emt 0:00:13]} 53. Kd3 {[%emt 0:00:00]} Rxf4 {[%emt 0:00:02]} 54. Rb6 {[%emt 0:00:00]} Ra4 {[%emt 0:00:16]} 55. a6 {[%emt 0:00:00]} Ke5 {[%emt 0:00:03]} 56. Kc3 {[%emt 0:00:00]} Kd5 {[%emt 0:00:03]} 57. Kb3 {[%emt 0:00:00]} Kc5 {[%emt 0:01:04]} 58. Rg6 {[%emt 0:00:00]} Ra1 {[%emt 0:00:00]} 59. Rg5+ {[%emt 0:00:00]} Kb6 {[%emt 0:00:00]} 60. Rg8 {[%emt 0:00:00]} Rxa6 {[%emt 0:00:00]} 1/2-1/2

[Event "Israeli U18-Team-ch 2024"]
[Site "Rishon LeZion"]
[Date "2024.08.01"]
[Round "5.11"]
[White "Afek, Itay"]
[Black "Manyevich, Rom"]
[Result "1/2-1/2"]
[ECO "A45"]
[WhiteElo "1913"]
[BlackElo "2015"]
[Annotator "RC"]
[PlyCount "84"]
[EventDate "2024.08.01"]
[EventType "team-tourn"]
[EventCountry "ISR"]
[SourceTitle "playchess.com"]
[Source "ChessBase"]
[SourceQuality "1"]
[TimeControl "3000+10"]

1. d4 {[%emt 0:00:04]} Nf6 {[%emt 0:00:08]} 2. Bf4 {[%emt 0:00:07]} c5 {[%emt 0:00:19]} 3. e3 {[%emt 0:00:02]} Qb6 {[%emt 0:00:19]} 4. Nc3 {[%emt 0:00:10]} a6 {[%emt 0:01:30]} 5. Na4 {[%emt 0:03:40]} Qa5+ {[%emt 0:01:13]} 6. c3 {[%emt 0:01:10]} d6 {[%emt 0:02:07]} 7. dxc5 {[%emt 0:01:19]} dxc5 {[%emt 0:01:03]} 8. b3 {[%emt 0:09:23]} Bd7 {[%emt 0:04:46]} 9. Qc2 {[%emt 0:02:26]} e6 {[%emt 0:09:16]} 10. Nb2 {[%emt 0:01:19]} b5 {[%emt 0:02:40]} 11. Nf3 {[%emt 0:02:23]} Nd5 {[%emt 0:02:51]} 12. Nd1 {[%emt 0:04:44]} Be7 {[%emt 0:03:38]} 13. Be2 {[%emt 0:01:12]} Nc6 {[%emt 0:02:01]} 14. Ne5 {[%emt 0:02:14]} Nxe5 {[%emt 0:01:13]} 15. Bxe5 {[%emt 0:00:02]} Bf6 {[%emt 0:02:47]} 16. Bxf6 {[%emt 0:00:28]} Nxf6 {[%emt 0:00:19]} 17. Bf3 {[%emt 0:00:19]} Rd8 {[%emt 0:01:04]} 18. O-O {[%emt 0:00:32]} O-O {[%emt 0:00:23]} 19. e4 {[%emt 0:01:41]} Bc6 {[%emt 0:00:36]} 20. Nb2 {[%emt 0:01:30]} e5 {[%emt 0:02:44]} 21. a4 {[%emt 0:01:41]} Qc7 {[%emt 0:01:02]} 22. axb5 {[%emt 0:00:50]} axb5 {[%emt 0:00:10]} 23. Rfe1 {[%emt 0:02:14]} Rd6 {[%emt 0:02:33]} 24. Red1 {[%emt 0:01:44]} Rfd8 {[%emt 0:01:09]} 25. Rxd6 {[%emt 0:03:18]} Qxd6 {[%emt 0:00:13]} 26. Qe2 {[%emt 0:02:25]} Qe7 {[%emt 0:02:27]} 27. Qe3 {[%emt 0:01:19]} Nd7 {[%emt 0:04:09]} 28. Nd3 {[%emt 0:01:08]} h6 {[%emt 0:00:26]} 29. h3 {[%emt 0:00:22]} Qd6 {[%emt 0:01:02]} 30. Rd1 {[%emt 0:00:42]} Qe7 {[%emt 0:00:13]} 31. Nxc5 {[%emt 0:00:25]} Nxc5 {[%emt 0:00:18]} 32. Rxd8+ {[%emt 0:00:04]} Qxd8 {[%emt 0:00:01]} 33. Qxc5 {[%emt 0:00:02]} Qf6 {[%emt 0:00:26]} 34. c4 {[%emt 0:01:38]} bxc4 {[%emt 0:00:04]} 35. Qxc4 {[%emt 0:00:04]} Bd7 {[%emt 0:00:23]} 36. Qd5 {[%emt 0:00:16]} Bxh3 {[%emt 0:00:17]} 37. b4 {[%emt 0:00:15]} Be6 {[%emt 0:00:13]} 38. Qd6 {[%emt 0:00:06]} Qf4 {[%emt 0:00:10]} 39. Qd1 {[%emt 0:00:34]} g5 {[%emt 0:00:14]} 40. b5 {[%emt 0:01:03]} Qf6 {[%emt 0:00:06]} 41. Qd6 {[%emt 0:00:30]} Qf4 {[%emt 0:00:11]} 42. Qd1 {[%emt 0:00:03]} Qf6 {[%emt 0:00:07]} 1/2-1/2